bitfinex-derivatives/quotes_SOLF0:USTF0_20250527
["timestamp","ask_amount","ask_price","bid_price","bid_amount"]
[1748387282300,6.48476572,176.9,176.81,0.04208096]
[1748387282602,6.48476572,176.9,176.82,5.6524]
[1748387282802,5.6517,176.85,176.82,5.6524]
[1748387283203,5.6509,176.88,176.81,0.04208096]
[1748387283394,5.737,176.92,176.81,116.48684668]
[1748387283704,1.8557,176.92,176.85,0.03901433]
[1748387283907,5.6502,176.9,176.85,28.79901433]
[1748387284198,1.8557,176.92,176.88,5.6506]
[1748387284391,1.8557,176.92,176.85,28.79901433]
[1748387284605,5.6497,176.92,176.85,28.79901433]
[1748387284794,28.76,176.94,176.85,28.79901433]
[1748387285201,5.6501,176.9,176.86,5.6512]
[1748387285508,28.76,176.94,176.86,5.6512]
[1748387285997,28.76,176.94,176.85,34.45051433]
[1748387286193,6.48476572,176.93,176.85,28.79901433]
[1748387286396,6.48476572,176.93,176.85,0.03901433]
[1748387286599,5.6513,176.86,176.85,0.03901433]
[1748387303305,5.6511,176.87,176.85,0.03901433]
[1748387303915,5.6508,176.88,176.85,0.03901433]
[1748387304510,5.6505,176.89,176.85,0.03901433]
[1748387304710,6.48476572,176.94,176.85,0.03901433]
[1748387305018,28.84,176.95,176.85,0.03901433]
[1748387305217,28.84,176.95,176.88,0.04184012]
[1748387305616,5.6498,176.91,176.88,5.69224012]
[1748387306516,5.6501,176.9,176.88,0.04184012]
[1748387307512,5.6504,176.89,176.88,0.04184012]
[1748387337141,5.6504,176.89,176.79,5.7274]
[1748387337347,17.78626572,176.88,176.79,1.9923]
[1748387337540,28.56,176.87,176.79,1.9923]
[1748387338143,0.03954846,176.85,176.81,0.04087565]
[1748387338847,5.6526,176.82,176.81,0.04087565]
[1748387344250,0.03954846,176.85,176.81,0.04087565]
[1748387344642,0.03954846,176.85,176.83,5.6521]
[1748387345945,0.03954846,176.85,176.82,5.6525]
[1748387347844,5.69134846,176.85,176.82,5.6525]
[1748387349052,0.03954846,176.85,176.81,0.04087565]
[1748387349456,5.6526,176.82,176.81,0.04087565]
[1748387357862,0.03954846,176.85,176.81,0.04087565]
[1748387358259,0.03954846,176.85,176.81,1.98577565]
[1748387358762,0.03954846,176.85,176.83,5.652]
[1748387361060,0.03954846,176.85,176.84,5.652]
[1748387362368,0.03954846,176.85,176.83,5.6522]
[1748387362758,0.03954846,176.85,176.81,3.85777565]
[1748387363061,0.03954846,176.85,176.81,0.04087565]
[1748387363265,5.652,176.84,176.81,0.04087565]
[1748387363563,0.03954846,176.85,176.81,5.69357565]
[1748387363773,0.03954846,176.85,176.81,0.04087565]
[1748387363966,5.6526,176.82,176.81,0.04087565]
[1748387368070,6.48476572,176.83,176.74,28.42]
[1748387368273,28.42,176.82,176.72,5.6556]
[1748387368574,5.6549,176.75,176.72,5.6556]
[1748387369168,5.69521933,176.75,176.72,5.69907929]
[1748387369473,0.04031933,176.75,176.72,0.04347929]
[1748387369980,5.6555,176.73,176.72,0.04347929]
[1748387373977,0.04031933,176.75,176.72,0.04347929]
[1748387374680,5.69531933,176.75,176.72,0.04347929]
[1748387374884,0.04031933,176.75,176.72,0.04347929]
[1748387375583,5.69531933,176.75,176.72,5.69917929]
[1748387375881,5.69531933,176.75,176.72,0.04347929]
[1748387376783,0.04031933,176.75,176.72,0.04347929]
[1748387377669,5.6552,176.74,176.72,0.04347929]
[1748387377880,0.04031933,176.75,176.72,0.04347929]
[1748387378985,5.6554,176.74,176.72,0.04347929]
[1748387379279,0.04031933,176.75,176.72,0.04347929]
[1748387379677,0.04031933,176.75,176.72,5.69917929]
[1748387379678,5.69531933,176.75,176.72,5.69917929]
[1748387380284,5.6552,176.74,176.72,0.04347929]
[1748387381386,5.69521933,176.75,176.72,5.69907929]
[1748387381684,0.04031933,176.75,176.72,28.46347929]
[1748387381879,28.42,176.81,176.72,28.46347929]
[1748387382286,5.6539,176.78,176.75,5.6546]
[1748387382985,5.68991957,176.78,176.75,5.69149171]
[1748387384882,5.6545,176.76,176.75,0.03689171]
[1748387401005,0.03601957,176.78,176.75,0.03689171]
[1748387402613,0.03601957,176.78,176.77,5.6542]
[1748387402817,0.03601957,176.78,176.75,0.03689171]
[1748387403315,5.6544,176.77,176.75,0.03689171]
[1748387403505,0.03601957,176.78,176.75,0.03689171]
[1748387404905,5.68991957,176.78,176.76,5.6543]
[1748387406313,5.68991957,176.78,176.75,0.03689171]
[1748387406616,0.03601957,176.78,176.75,0.03689171]
[1748387408522,5.6543,176.77,176.75,5.69149171]
[1748387408716,0.03601957,176.78,176.75,5.69149171]
[1748387409117,5.6544,176.77,176.75,5.69149171]
[1748387409518,0.03601957,176.78,176.75,5.69149171]
[1748387409718,5.69001957,176.78,176.75,5.69149171]
[1748387410119,0.03601957,176.78,176.75,5.69149171]
[1748387410319,5.6545,176.76,176.75,0.03689171]
[1748387410521,0.03601957,176.78,176.75,0.03689171]
[1748387411319,5.6543,176.77,176.75,5.69149171]
[1748387412323,5.69001957,176.78,176.76,5.6545]
[1748387415127,5.69001957,176.78,176.75,5.69159171]
[1748387415324,5.6543,176.77,176.75,5.69159171]
[1748387415524,0.03601957,176.78,176.75,5.69159171]
[1748387416027,5.6544,176.77,176.75,5.69159171]
[1748387416524,5.6545,176.76,176.75,0.03689171]
[1748387418827,5.6542,176.77,176.75,0.03689171]
[1748387419132,0.03601957,176.78,176.75,0.03689171]
[1748387419929,0.03601957,176.78,176.76,5.6545]
[1748387420528,0.03601957,176.78,176.75,0.03689171]
[1748387421828,0.03601957,176.78,176.77,5.6542]
[1748387429335,28.48,176.86,176.81,5.6529]
[1748387429731,5.6522,176.84,176.78,28.48]
[1748387429934,517.04,176.89,176.83,5.6523]
[1748387430134,517.04,176.89,176.78,144.64476572]
[1748387430334,5.6512,176.87,176.84,5.6519]
[1748387430632,5.6512,176.87,176.82,0.0385373]
[1748387431133,5.6515,176.86,176.83,5.6523]
[1748387432237,5.6517,176.85,176.83,5.6523]
[1748387432433,5.6517,176.85,176.82,0.0385373]
[1748387432434,5.6517,176.85,176.82,5.6910373]
[1748387432629,5.6513,176.87,176.82,0.0385373]
[1748387432830,15.3933,176.95,176.82,28.5185373]
[1748387432831,30.4241,176.92,176.82,28.5185373]
[1748387433028,30.4241,176.92,176.83,5.6522]
[1748387433228,5.6513,176.87,176.86,0.03606779]
[1748387454265,28.48,176.91,176.86,0.03606779]
[1748387454464,32.5562,176.95,176.86,0.03606779]
[1748387454659,28.46,176.95,176.87,28.46]
[1748387454858,28.46,176.95,176.9,5.6498]
[1748387455064,28.46,176.95,176.91,0.0388401]
[1748387455363,5.6494,176.93,176.91,0.0388401]
[1748387455556,1.9406,176.97,176.91,0.0388401]
[1748387456257,5.6494,176.92,176.91,0.0388401]
[1748387461572,1.9406,176.97,176.87,28.46]
[1748387461573,5.6507,176.88,176.87,28.46]
[1748387461964,5.6507,176.88,176.85,5.6513]
[1748387462659,5.6911665,176.88,176.85,5.68798115]
[1748387462863,0.0404665,176.88,176.87,5.651]
[1748387476179,28.32,176.97,176.85,6.52144687]
[1748387476381,28.32,176.99,176.88,6.48476572]
[1748387476576,28.32,176.99,176.89,28.32]
[1748387477277,28.32,176.99,176.92,5.69141312]
[1748387477877,5.6488,176.94,176.92,5.69141312]
[1748387478275,5.6488,176.94,176.92,0.04211312]
[1748387478677,5.6491,176.93,176.92,0.04211312]
[1748387495296,5.6491,176.93,176.92,1.312e-05]
[1748387495598,5.6516,176.86,176.83,28.34]
[1748387496094,5.6511,176.87,176.83,28.34]
[1748387496497,5.69208514,176.87,176.83,28.38106233]
[1748387496897,5.69208514,176.87,176.84,5.6517]
[1748387502902,5.6515,176.86,176.83,34.03316233]
[1748387503407,5.6515,176.86,176.84,5.6519]
[1748387503596,5.6515,176.86,176.83,28.38106233]
[1748387504493,5.6515,176.86,176.83,34.03316233]
[1748387504693,5.69208514,176.87,176.83,28.38106233]
[1748387506203,5.69208514,176.87,176.84,5.6519]
[1748387508400,5.69208514,176.87,176.85,5.6515]
[1748387509202,5.69208514,176.87,176.84,5.6518]
[1748387511299,5.69208514,176.87,176.85,5.6515]
[1748387511505,0.04098514,176.87,176.85,5.6515]
[1748387511902,5.69198514,176.87,176.85,5.6515]
[1748387515805,0.04098514,176.87,176.86,5.6513]
[1748387517209,0.04098514,176.87,176.85,5.6515]
[1748387517410,0.04098514,176.87,176.84,6.14303955]
[1748387517599,0.04098514,176.87,176.85,5.6513]
[1748387519809,5.69198514,176.87,176.85,5.6513]
[1748387520408,0.04098514,176.87,176.85,5.6516]
[1748387520613,0.04098514,176.87,176.84,6.14303955]
[1748387521209,0.04098514,176.87,176.85,5.6516]
[1748387523911,0.04098514,176.87,176.86,5.6513]
[1748387524414,28.22,177.02,176.86,9.80113955]
[1748387524617,4.14113955,177.0,176.92,4.14113955]
[1748387524914,4.14113955,177.0,176.92,32.36113955]
[1748387524915,5.6476,176.98,176.92,32.36113955]
[1748387525408,5.6478,176.97,176.94,5.6485]
[1748387527418,5.6481,176.96,176.94,5.6485]
[1748387527813,5.6481,176.96,176.93,5.68772188]
[1748387530415,5.6481,176.96,176.94,5.6487]
[1748387531617,5.6485,176.95,176.93,0.03872188]
[1748387532419,5.6485,176.95,176.93,5.68782188]
[1748387532915,5.6483,176.96,176.93,5.68782188]
[1748387533118,28.22,177.02,176.94,5.6486]
[1748387533513,28.22,177.02,176.93,0.03872188]
[1748387534115,28.22,177.02,176.95,5.6482]
[1748387534116,5.6478,176.98,176.95,5.6482]
[1748387534316,28.22,177.02,176.95,0.04277617]
[1748387534717,28.22,177.02,176.96,5.6479]
[1748387535823,5.6476,176.98,176.95,5.69117617]
[1748387536121,28.22,177.02,176.95,5.69117617]
[1748387536316,5.6477,176.98,176.95,5.69117617]
[1748387537819,5.6472,177.0,176.95,0.04277617]
[1748387538219,5.6472,177.0,176.96,28.22]
[1748387538621,5.6472,177.0,176.97,5.6476]
[1748387539219,28.22,177.05,176.96,28.22]
[1748387539220,5.6467,177.01,176.96,28.22]
[1748387539420,5.6467,177.01,176.98,5.6472]
[1748387539622,28.22,177.05,176.97,0.03627973]
[1748387539918,28.22,177.05,176.97,5.68387973]
[1748387540322,28.22,177.05,176.97,0.03627973]
[1748387540527,6.46304553,177.04,176.97,0.03627973]
[1748387540829,5.6475,176.98,176.97,0.03627973]
[1748387541727,5.6473,176.99,176.97,0.03627973]
[1748387542820,5.6475,176.98,176.97,0.03627973]
[1748387551532,28.2,177.02,176.97,0.03627973]
[1748387552136,5.6475,176.98,176.97,0.03627973]
[1748387553729,6.46304553,177.0,176.91,28.2]
[1748387553938,17.75684553,177.0,176.88,28.2]
[1748387554135,5.7963,177.01,176.88,28.2]
[1748387554136,6.46304553,176.97,176.88,28.2]
[1748387554337,5.6504,176.89,176.88,28.2]
[1748387554528,5.6504,176.89,176.86,5.6511]
[1748387554735,0.0429234,176.89,176.86,0.03902988]
[1748387555238,0.0429234,176.89,176.87,5.651]
[1748387558443,0.0429234,176.89,176.88,5.6507]
[1748387559437,0.0429234,176.89,176.86,0.03902988]
[1748387559438,5.6507,176.88,176.86,0.03902988]
[1748387559638,0.0429234,176.89,176.86,0.03902988]
[1748387560033,5.6936234,176.89,176.86,5.69012988]
[1748387561137,5.6936234,176.89,176.87,5.651]
[1748387561939,0.0429234,176.89,176.86,0.03902988]
[1748387563745,5.651,176.87,176.86,0.03902988]
[1748387564948,5.6508,176.88,176.86,0.03902988]
[1748387565452,0.0429234,176.89,176.86,0.03902988]
[1748387566052,5.6507,176.88,176.86,0.03902988]
[1748387566453,0.0429234,176.89,176.86,0.03902988]
[1748387566649,5.651,176.88,176.86,0.03902988]
[1748387567754,5.651,176.87,176.86,0.03902988]
[1748387572360,5.6934234,176.89,176.86,0.03902988]
[1748387572960,5.6934234,176.89,176.86,5.69012988]
[1748387573955,5.6507,176.88,176.86,5.69012988]
[1748387574154,0.0429234,176.89,176.86,0.03902988]
[1748387574657,0.0429234,176.89,176.88,5.6507]
[1748387574857,28.22,176.98,176.87,6.46304553]
[1748387575164,28.22,176.99,176.87,8.31954553]
[1748387575461,5.6484,176.96,176.93,5.6491]
[1748387575657,28.22,176.99,176.91,28.22]
[1748387575851,28.22,176.99,176.93,0.03803301]
[1748387576962,5.6486,176.95,176.93,0.03803301]
[1748387577958,5.6483,176.96,176.93,5.68713301]
[1748387578162,28.22,176.99,176.93,0.03803301]
[1748387578762,5.6488,176.94,176.93,0.03803301]
[1748387582363,28.22,176.99,176.93,0.03803301]
[1748387582364,5.6485,176.95,176.93,0.03803301]
[1748387583671,5.6482,176.96,176.93,5.68713301]
[1748387585862,28.22,176.99,176.93,0.03803301]
[1748387586067,34.0284,177.02,176.93,0.03803301]
[1748387586472,5.6476,176.98,176.95,5.6483]
[1748387586667,5.6476,176.98,176.95,5.68698473]
[1748387587371,5.6476,176.98,176.95,0.03868473]
[1748387587775,34.0284,177.02,176.95,0.03868473]
[1748387588268,5.6481,176.97,176.95,0.03868473]
[1748387588866,34.0284,177.02,176.95,0.03868473]
[1748387589474,5.6481,176.96,176.95,0.03868473]
[1748387595675,5.6481,176.96,176.95,8.473e-05]
[1748387596078,5.6504,176.89,176.88,28.2]
[1748387596274,12.36504553,176.96,176.86,5.6512]
[1748387596678,5.6506,176.89,176.86,5.6512]
[1748387597073,5.68977397,176.89,176.86,5.69129471]
[1748387597981,0.03917397,176.89,176.87,5.6509]
[1748387598284,0.03917397,176.89,176.86,0.04009471]
[1748387598581,0.03917397,176.89,176.88,5.6507]
[1748387614597,28.2,176.97,176.87,1.8709]
[1748387614899,28.2,176.97,176.87,5.7799]
[1748387615699,28.2,176.97,176.9,0.04106352]
[1748387615903,5.6496,176.92,176.9,0.04106352]
[1748387616488,28.2,176.97,176.9,0.04106352]
[1748387616692,28.2,177.0,176.9,0.04106352]
[1748387616890,28.2,177.0,176.93,0.04017152]
[1748387617606,5.6489,176.94,176.93,0.04017152]
[1748387631918,5.6507,176.88,176.87,28.2]
[1748387632111,6.46304553,176.91,176.84,28.2]
[1748387632311,5.6517,176.85,176.84,28.2]
[1748387632617,34.66304553,176.91,176.81,28.2]
[1748387632917,0.04161096,176.88,176.84,0.04021445]
[1748387633508,5.6518,176.85,176.84,0.04021445]
[1748387636313,5.6515,176.86,176.84,0.04021445]
[1748387637617,5.6511,176.87,176.84,0.04021445]
[1748387640021,5.6511,176.87,176.84,5.69201445]
[1748387640413,5.6511,176.87,176.84,0.04021445]
[1748387640615,0.04161096,176.88,176.86,5.6513]
[1748387641315,0.04161096,176.88,176.87,5.651]
[1748387641517,0.04161096,176.88,176.84,0.04021445]
[1748387642022,5.69241096,176.88,176.85,5.6515]
[1748387644322,0.04161096,176.88,176.86,5.6512]
[1748387645122,5.69231096,176.88,176.86,5.6512]
[1748387645321,5.69231096,176.88,176.85,5.6516]
[1748387645720,5.651,176.87,176.85,5.6516]
[1748387646024,0.04161096,176.88,176.85,5.6516]
[1748387646223,5.69251096,176.88,176.85,5.6516]
[1748387646619,0.04161096,176.88,176.84,5.69201445]
[1748387646817,5.6512,176.87,176.84,0.04021445]
[1748387647923,5.6512,176.87,176.85,5.6516]
[1748387648726,5.6514,176.86,176.84,0.04021445]
[1748387648915,0.04161096,176.88,176.84,0.04021445]
[1748387649114,5.6516,176.85,176.84,0.04021445]
[1748387649515,6.46304553,176.85,176.76,28.2]
[1748387649719,28.2,176.86,176.75,33.8546]
[1748387649720,5.6541,176.78,176.75,33.8546]
[1748387650019,6.46304553,176.82,176.75,28.2]
[1748387650421,0.04067777,176.8,176.77,0.04162264]
[1748387651041,5.6538,176.79,176.77,0.04162264]
[1748387654326,5.6539,176.78,176.77,0.04162264]
[1748387659940,5.6552,176.74,176.71,5.656]
[1748387660238,5.6552,176.74,176.69,516.44]
[1748387660931,5.69717142,176.73,176.7,0.04289468]
[1748387661932,0.04167142,176.73,176.7,0.04289468]
[1748387663738,5.69717142,176.73,176.7,5.69909468]
[1748387663944,0.04167142,176.73,176.7,0.04289468]
[1748387665246,0.04167142,176.73,176.72,5.6558]
[1748387668547,28.22,176.81,176.76,5.6543]
[1748387668750,5.6538,176.79,176.76,5.6543]
[1748387669352,28.22,176.81,176.76,5.6543]
[1748387669544,0.03699437,176.8,176.77,0.03812032]
[1748387670051,6.5000399,176.8,176.77,0.03812032]
[1748387670446,5.6539,176.78,176.77,0.03812032]
[1748387672743,5.6539,176.78,176.72,5.6557]
[1748387673052,6.46304553,176.74,176.59,28.22]
[1748387673253,6.46304553,176.71,176.6,3.9425]
[1748387673448,5.6574,176.68,176.62,5.6587]
[1748387673652,6.46304553,176.71,176.63,28.22]
[1748387673951,6.46304553,176.71,176.55,510.70775844]
[1748387673952,5.6577,176.66,176.65,0.04314242]
[1748387674144,0.0366143,176.67,176.64,0.04019654]
[1748387674349,5.658,176.65,176.64,0.0411763]
[1748387678949,0.03927178,176.67,176.64,0.0411763]
[1748387679457,0.03927178,176.67,176.65,5.6577]
[1748387679761,0.03927178,176.67,176.66,28.22]
[1748387682460,0.03927178,176.67,176.66,33.8777]
[1748387687371,3.946,176.77,176.7,5.6561]
[1748387687667,3.946,176.77,176.66,28.22]
[1748387687668,3.946,176.77,176.71,28.22]
[1748387687871,3.946,176.77,176.72,28.22]
[1748387688070,3.946,176.77,176.73,28.22]
[1748387688467,3.98614634,176.77,176.73,28.25995694]
[1748387689371,1.96514634,176.77,176.73,28.25995694]
[1748387689965,0.04014634,176.77,176.73,28.25995694]
[1748387690866,5.6552,176.74,176.73,28.25995694]
[1748387693365,0.04014634,176.77,176.73,28.25995694]
[1748387694167,5.6551,176.75,176.73,28.25995694]
[1748387694764,5.6552,176.74,176.73,28.25995694]
[1748387701070,0.04014634,176.77,176.73,28.25995694]
[1748387701576,5.69434634,176.77,176.73,28.25995694]
[1748387701966,0.04014634,176.77,176.73,28.25995694]
[1748387702165,0.04014634,176.77,176.73,33.91515694]
[1748387702578,0.04014634,176.77,176.73,28.25995694]
[1748387702772,0.04014634,176.77,176.74,28.22]
[1748387703880,5.6548,176.75,176.74,28.22]
[1748387705178,5.6552,176.74,176.73,0.03995694]
[1748387709983,5.6552,176.74,176.73,28.25995694]
[1748387719181,5.6552,176.74,176.73,28.23995694]
[1748387722690,5.6552,176.74,176.73,0.03995694]
[1748387729088,0.04014634,176.77,176.73,0.03995694]
[1748387729788,0.04014634,176.77,176.73,1.99875694]
[1748387730197,5.6551,176.75,176.74,28.22]
[1748387730391,0.04014634,176.77,176.73,28.25995694]
[1748387731095,5.6552,176.74,176.73,28.25995694]
[1748387732996,5.655,176.75,176.73,28.25995694]
[1748387733399,0.04014634,176.77,176.73,33.91535694]
[1748387734593,5.6548,176.76,176.73,33.91535694]
[1748387734894,0.04014634,176.77,176.73,28.25995694]
[1748387737189,5.69454634,176.77,176.73,33.91525694]
[1748387738500,5.69454634,176.77,176.74,5.6551]
[1748387738896,0.04014634,176.77,176.73,28.25995694]
[1748387739397,5.6551,176.75,176.73,28.25995694]
[1748387739593,0.04014634,176.77,176.73,28.25995694]
[1748387741011,5.6552,176.74,176.73,28.25995694]
[1748387741393,0.04014634,176.77,176.73,28.25995694]
[1748387742804,0.04014634,176.77,176.74,5.6551]
[1748387743305,5.69454634,176.77,176.74,5.6551]
[1748387743903,0.04014634,176.77,176.75,5.6548]
[1748387744206,0.04014634,176.77,176.73,28.25995694]
[1748387744600,5.69434634,176.77,176.74,5.655]
[1748387744906,0.04014634,176.77,176.73,28.25995694]
[1748387746803,0.04014634,176.77,176.76,5.6545]
[1748387747010,0.04014634,176.77,176.73,28.25995694]
[1748387747603,5.655,176.75,176.73,28.25995694]
[1748387747908,0.04014634,176.77,176.73,33.91545694]
[1748387748107,5.6548,176.76,176.73,33.91545694]
[1748387748715,0.04014634,176.77,176.73,28.25995694]
[1748387749216,5.6551,176.75,176.73,28.25995694]
[1748387750612,5.6552,176.74,176.73,28.25995694]
[1748387750815,0.04014634,176.77,176.73,28.25995694]
[1748387751113,5.655,176.75,176.73,28.25995694]
[1748387751613,5.655,176.75,176.73,33.91545694]
[1748387752417,5.6552,176.74,176.73,28.25995694]
[1748387754712,0.04014634,176.77,176.73,28.25995694]
[1748387755119,0.04014634,176.77,176.73,33.91525694]
[1748387755319,5.6548,176.76,176.73,33.91525694]
[1748387756318,0.04014634,176.77,176.73,28.25995694]
[1748387757017,5.69434634,176.77,176.74,5.655]
[1748387757922,0.04014634,176.77,176.75,5.6547]
[1748387758629,0.04014634,176.77,176.76,5.6545]
[1748387759525,0.04014634,176.77,176.73,28.25995694]
[1748387761023,5.6548,176.76,176.73,33.91535694]
[1748387761619,5.6548,176.75,176.73,33.91535694]
[1748387761817,0.04014634,176.77,176.73,28.25995694]
[1748387762020,0.04014634,176.77,176.73,0.03995694]
[1748387762527,5.6552,176.74,176.73,0.03995694]
[1748387763219,0.04014634,176.77,176.73,0.03995694]
[1748387764624,5.6549,176.75,176.73,0.03995694]
[1748387767924,5.6552,176.74,176.73,0.03995694]
[1748387771329,0.04014634,176.77,176.73,0.03995694]
[1748387774134,5.655,176.75,176.73,0.03995694]
[1748387774836,5.6552,176.74,176.73,0.03995694]
[1748387777926,5.655,176.75,176.73,0.03995694]
[1748387779839,5.6552,176.74,176.73,0.03995694]
[1748387784436,4.18717364,176.77,176.73,0.03995694]
[1748387784831,5.6552,176.74,176.73,0.03995694]
[1748387796060,5.655,176.75,176.73,0.03995694]
[1748387797076,5.655,176.75,176.73,5.69535694]
[1748387800178,0.04014634,176.77,176.74,5.655]
[1748387800479,0.04014634,176.77,176.73,0.03995694]
[1748387801170,0.04014634,176.77,176.76,5.6545]
[1748387801770,0.04014634,176.77,176.76,33.8545]
[1748387803585,0.04014634,176.77,176.76,28.2]
[1748387803976,5.69434634,176.77,176.76,28.2]
[1748387804287,0.04014634,176.77,176.76,28.2]
[1748387805284,5.69434634,176.77,176.76,28.2]
[1748387815074,0.04014634,176.77,176.76,28.2]
[1748387815588,488.58,176.9,176.76,28.2]
[1748387815589,4.1470273,176.86,176.76,28.2]
[1748387815773,4.1470273,176.86,176.79,4.1470273]
[1748387815962,4.1470273,176.86,176.8,28.2]
[1748387816157,5.6522,176.84,176.81,5.6527]
[1748387816357,4.1470273,176.82,176.76,3.8966]
[1748387816657,5.6542,176.77,176.73,5.6553]
[1748387816955,0.04097373,176.77,176.73,28.24025223]
[1748387817161,5.6545,176.76,176.73,33.89565223]
[1748387817362,5.6545,176.76,176.73,28.24025223]
[1748387818256,5.655,176.75,176.73,28.24025223]
[1748387818457,0.04097373,176.77,176.73,28.24025223]
[1748387818850,5.6545,176.76,176.73,28.24025223]
[1748387819060,0.04097373,176.77,176.73,28.24025223]
[1748387819250,5.6548,176.76,176.73,28.24025223]
[1748387819452,0.04097373,176.77,176.73,33.89555223]
[1748387821062,5.6546,176.76,176.73,33.89555223]
[1748387823265,5.6552,176.74,176.73,28.24025223]
[1748387823466,0.04097373,176.77,176.73,28.24025223]
[1748387823871,0.04097373,176.77,176.74,5.655]
[1748387824567,0.04097373,176.77,176.75,5.6547]
[1748387825669,0.04097373,176.77,176.76,5.6545]
[1748387838880,0.04097373,176.77,176.73,28.24025223]
[1748387839285,5.69527373,176.77,176.73,28.24025223]
[1748387839478,0.04097373,176.77,176.76,5.6545]
[1748387846488,7.373e-05,176.77,176.76,7.5857]
[1748387846689,7.373e-05,176.77,176.76,9.5289]
[1748387849099,7.373e-05,176.77,176.76,7.5857]
[1748387871114,7.373e-05,176.77,176.76,5.6545]
[1748387874915,4.14469786,176.86,176.83,5.6522]
[1748387875221,4.14469786,176.87,176.83,5.6522]
[1748387875410,4.14469786,176.87,176.8,32.32469786]
[1748387876115,4.14469786,176.87,176.82,0.04348008]
[1748387876518,5.6514,176.86,176.82,5.69598008]
[1748387877318,5.6517,176.85,176.82,5.69598008]
[1748387878322,5.652,176.84,176.82,0.04348008]
[1748387880321,5.6518,176.85,176.82,5.69598008]
[1748387881018,5.652,176.84,176.82,5.69598008]
[1748387881516,5.652,176.84,176.82,0.04348008]
[1748387881721,5.6523,176.83,176.82,0.04348008]
[1748387882025,4.14469786,176.85,176.77,28.18]
[1748387882322,4.14469786,176.83,176.75,4.14469786]
[1748387882622,4.14469786,176.83,176.75,9.79929786]
[1748387882817,3.8759,176.82,176.75,37.97929786]
[1748387883016,5.6539,176.78,176.77,0.040134]
[1748387883317,0.03643697,176.81,176.77,0.040134]
[1748387883621,5.6539,176.78,176.77,0.040134]
[1748387885016,0.03643697,176.81,176.77,0.040134]
[1748387885815,5.6536,176.79,176.77,0.040134]
[1748387887420,5.6539,176.78,176.77,0.040134]
[1748387898826,5.6539,176.78,176.77,3.4e-05]
[1748387899131,5.6539,176.78,176.67,1.9823]
[1748387899132,7.6541,176.78,176.7,28.18]
[1748387899330,4.14469786,176.75,176.7,28.18]
[1748387899723,5.656,176.72,176.7,28.18]
[1748387901131,0.04062235,176.73,176.7,28.18]
[1748387901431,0.04062235,176.73,176.71,4.14469786]
[1748387902427,0.04062235,176.73,176.72,5.6558]
[1748387913123,0.04062235,176.73,176.7,28.18]
[1748387913535,0.04062235,176.73,176.71,5.6561]
[1748387915327,0.04062235,176.73,176.72,5.6558]
[1748387917436,3.8759,176.82,176.76,5.6543]
[1748387918335,0.03692719,176.81,176.76,5.6543]
[1748387918542,0.03692719,176.81,176.77,0.04180413]
[1748387918742,5.6533,176.8,176.77,0.04180413]
[1748387919238,5.6533,176.8,176.77,5.69600413]
[1748387920144,0.03692719,176.81,176.79,5.6534]
[1748387920342,0.03692719,176.81,176.77,0.04180413]
[1748387920736,0.03692719,176.81,176.8,5.6532]
[1748387934946,2.719e-05,176.81,176.8,5.6532]
[1748387936351,2.0235,176.9,176.79,34.63945288]
[1748387936546,2.0235,176.9,176.8,4.0315]
[1748387937352,2.0235,176.9,176.83,0.03693081]
[1748387937552,2.0235,176.9,176.84,28.16]
[1748387937754,5.6509,176.88,176.84,33.8118]
[1748387937958,2.0235,176.9,176.84,37.95257353]
[1748387938456,5.6513,176.87,176.84,32.30077353]
[1748387939156,5.6514,176.86,176.84,32.30077353]
[1748387940056,5.6514,176.86,176.84,28.16]
[1748387940352,5.6516,176.85,176.83,0.03693081]
[1748387940553,34.6310559,176.88,176.78,28.16]
[1748387940760,5.6534,176.8,176.77,5.654]
[1748387941054,5.6534,176.8,176.75,488.4]
[1748387941264,5.6534,176.8,176.76,28.16]
[1748387941557,0.0435069,176.8,176.78,5.6537]
[1748387942552,5.6969069,176.8,176.76,28.20134028]
[1748387942757,5.6969069,176.8,176.77,5.6541]
[1748387944557,0.0435069,176.8,176.76,28.20134028]
[1748387945059,5.6542,176.77,176.76,0.04134028]
[1748387951672,5.66,176.77,176.55,370.3222]